[Event "Live Chess"]
[Site "Chess.com"]
[Date "2024.06.02"]
[Round "-"]
[White "educatedlad"]
[Black "Tushinskiy"]
[Result "0-1"]
[WhiteElo "1745"]
[BlackElo "2234"]
[TimeControl "300"]
[EndTime "17:29:21 PDT"]
[Termination "Tushinskiy won by checkmate"]

1. d4 {[%clk 0:04:58.8]} 1... d5 {[%clk 0:04:57.2]} 2. c4 {[%clk 0:04:55.4]}
2... c6 {[%clk 0:04:57.1]} 3. Nd2 {[%clk 0:04:52.7]} 3... Nf6 {[%clk 0:04:57]}
4. Ngf3 {[%clk 0:04:50.5]} 4... e6 {[%clk 0:04:47.1]} 5. Qc2 {[%clk 0:04:47.7]}
5... Be7 {[%clk 0:04:43.1]} 6. e4 {[%clk 0:04:45.3]} 6... dxe4 {[%clk
0:04:37.1]} 7. Nxe4 {[%clk 0:04:41.2]} 7... Nxe4 {[%clk 0:04:37]} 8. Qxe4 {[%clk
0:04:39.8]} 8... Nd7 {[%clk 0:04:36.5]} 9. Bd3 {[%clk 0:04:37.1]} 9... Nf6
{[%clk 0:04:32.1]} 10. Qe5 {[%clk 0:04:31.2]} 10... b6 {[%clk 0:04:27.3]} 11.
O-O {[%clk 0:04:23.2]} 11... Bb7 {[%clk 0:04:18.1]} 12. b3 {[%clk 0:04:05.4]}
12... c5 {[%clk 0:04:11]} 13. dxc5 {[%clk 0:03:56.4]} 13... Bxf3 {[%clk
0:04:08.1]} 14. Bxh7 {[%clk 0:03:35.1]} 14... Rxh7 {[%clk 0:03:54.4]} 15. gxf3
{[%clk 0:03:31.3]} 15... Bxc5 {[%clk 0:03:53.8]} 16. Bf4 {[%clk 0:03:24.2]}
16... Qd4 {[%clk 0:03:47.6]} 17. Qxd4 {[%clk 0:03:20]} 17... Bxd4 {[%clk
0:03:47.5]} 18. Rad1 {[%clk 0:03:18.6]} 18... O-O-O {[%clk 0:03:45.9]} 19. Rd3
{[%clk 0:03:13]} 19... Bc5 {[%clk 0:03:42.9]} 20. Rxd8+ {[%clk 0:03:10.9]} 20...
Kxd8 {[%clk 0:03:42.8]} 21. Rd1+ {[%clk 0:03:08.8]} 21... Kc8 {[%clk 0:03:41.8]}
22. Bd6 {[%clk 0:03:06.8]} 22... Bxd6 {[%clk 0:03:36.8]} 23. Rxd6 {[%clk
0:03:06.7]} 23... Kc7 {[%clk 0:03:36.4]} 24. Rd3 {[%clk 0:03:03.9]} 24... Nd7
{[%clk 0:03:35.9]} 25. a4 {[%clk 0:02:55.4]} 25... Rh5 {[%clk 0:03:31.1]} 26.
Kg2 {[%clk 0:02:51.6]} 26... Nc5 {[%clk 0:03:24.9]} 27. Re3 {[%clk 0:02:47.9]}
27... e5 {[%clk 0:03:17.1]} 28. Kg3 {[%clk 0:02:44.1]} 28... f6 {[%clk
0:03:15.1]} 29. h4 {[%clk 0:02:42.1]} 29... Ne6 {[%clk 0:03:11.9]} 30. Kg4
{[%clk 0:02:40.2]} 30... g6 {[%clk 0:03:10.5]} 31. Rd3 {[%clk 0:02:36.6]} 31...
Rf5 {[%clk 0:02:54]} 32. h5 {[%clk 0:02:28.9]} 32... Rxh5 {[%clk 0:02:51.8]} 33.
Rd5 {[%clk 0:02:25.4]} 33... Nf4 {[%clk 0:02:38.9]} 34. Rb5 {[%clk 0:02:18.5]}
34... f5+ {[%clk 0:02:36.9]} 35. Kg3 {[%clk 0:02:17]} 35... Rh3# {[%clk
0:02:36.8]} 0-1

[Event "Live Chess"]
[Site "Chess.com"]
[Date "2024.06.02"]
[Round "-"]
[White "StoreySniper"]
[Black "KeithArkell"]
[Result "1-0"]
[WhiteElo "2536"]
[BlackElo "2423"]
[TimeControl "300"]
[EndTime "17:29:43 PDT"]
[Termination "StoreySniper won by checkmate"]

1. d4 {[%clk 0:04:55.9]} 1... c5 {[%clk 0:04:58.5]} 2. d5 {[%clk 0:04:54.6]}
2... e5 {[%clk 0:04:57.7]} 3. c4 {[%clk 0:04:53.5]} 3... d6 {[%clk 0:04:57.3]}
4. Nc3 {[%clk 0:04:52.9]} 4... Be7 {[%clk 0:04:56.9]} 5. e4 {[%clk 0:04:51.7]}
5... Bg5 {[%clk 0:04:56.1]} 6. Bxg5 {[%clk 0:04:49.2]} 6... Qxg5 {[%clk
0:04:54.8]} 7. Nf3 {[%clk 0:04:48.8]} 7... Qe7 {[%clk 0:04:53.2]} 8. Be2 {[%clk
0:04:45.6]} 8... Bg4 {[%clk 0:04:52.2]} 9. h3 {[%clk 0:04:43.5]} 9... Bxf3
{[%clk 0:04:51.5]} 10. Bxf3 {[%clk 0:04:43]} 10... a6 {[%clk 0:04:51]} 11. O-O
{[%clk 0:04:40.5]} 11... Nf6 {[%clk 0:04:50.3]} 12. Rb1 {[%clk 0:04:39.3]} 12...
Nbd7 {[%clk 0:04:49.5]} 13. a3 {[%clk 0:04:37.2]} 13... O-O {[%clk 0:04:46.1]}
14. b4 {[%clk 0:04:35.7]} 14... Rfc8 {[%clk 0:04:43.1]} 15. Qd3 {[%clk
0:04:34.2]} 15... g6 {[%clk 0:04:41.2]} 16. Na4 {[%clk 0:04:31.3]} 16... b5
{[%clk 0:04:31.9]} 17. cxb5 {[%clk 0:03:59.7]} 17... c4 {[%clk 0:04:29.9]} 18.
Qc3 {[%clk 0:03:47.1]} 18... axb5 {[%clk 0:04:28.7]} 19. Nb2 {[%clk 0:03:45.1]}
19... Rc7 {[%clk 0:04:28]} 20. Ra1 {[%clk 0:03:43.2]} 20... Rca7 {[%clk
0:04:26.7]} 21. a4 {[%clk 0:03:34.5]} 21... bxa4 {[%clk 0:04:25.4]} 22. Ra3
{[%clk 0:03:32.1]} 22... Nb6 {[%clk 0:04:23.9]} 23. Rfa1 {[%clk 0:03:16.8]}
23... Qd7 {[%clk 0:04:21.7]} 24. Qe3 {[%clk 0:03:14.5]} 24... Qb5 {[%clk
0:04:20.3]} 25. Qc3 {[%clk 0:03:03.7]} 25... Kg7 {[%clk 0:04:19.3]} 26. g4
{[%clk 0:02:58.8]} 26... h6 {[%clk 0:04:17.7]} 27. h4 {[%clk 0:02:57.3]} 27...
Rc7 {[%clk 0:04:10.6]} 28. g5 {[%clk 0:02:55.3]} 28... hxg5 {[%clk 0:04:10]} 29.
hxg5 {[%clk 0:02:55.2]} 29... Nh7 {[%clk 0:04:09.3]} 30. Kg2 {[%clk 0:02:40.3]}
30... Nxg5 {[%clk 0:04:08.2]} 31. Rh1 {[%clk 0:02:39.1]} 31... Qd7 {[%clk
0:03:57.6]} 32. Qe3 {[%clk 0:02:31.9]} 32... Qe7 {[%clk 0:03:56.4]} 33. Qxb6
{[%clk 0:02:29.8]} 33... Nxf3 {[%clk 0:03:52.1]} 34. Rxf3 {[%clk 0:02:25.4]}
34... a3 {[%clk 0:03:48.1]} 35. Qe3 {[%clk 0:02:21]} 35... g5 {[%clk 0:03:32.9]}
36. Rfh3 {[%clk 0:02:09.3]} 36... Rg8 {[%clk 0:03:04.8]} 37. Qxa3 {[%clk
0:02:03.4]} 37... g4 {[%clk 0:02:59.8]} 38. Rh7+ {[%clk 0:01:57.2]} 38... Kf6
{[%clk 0:02:46.6]} 39. R1h6+ {[%clk 0:01:53.8]} 39... Rg6 {[%clk 0:02:45.5]} 40.
Qg3 {[%clk 0:01:39.7]} 40... Rxh6 {[%clk 0:02:41.4]} 41. Rxh6+ {[%clk
0:01:37.6]} 41... Kg7 {[%clk 0:02:40.7]} 42. Rh4 {[%clk 0:01:33.3]} 42... Qf6
{[%clk 0:02:35.1]} 43. Rxg4+ {[%clk 0:01:28.4]} 43... Kf8 {[%clk 0:02:34.3]} 44.
Nd1 {[%clk 0:01:00.4]} 44... Ra7 {[%clk 0:02:30.6]} 45. Rg8+ {[%clk 0:00:48.4]}
45... Ke7 {[%clk 0:02:29.6]} 46. Qg5 {[%clk 0:00:46.6]} 46... Qxg5+ {[%clk
0:02:27.5]} 47. Rxg5 {[%clk 0:00:46.5]} 47... Rb7 {[%clk 0:02:23.2]} 48. Rg3
{[%clk 0:00:42.8]} 48... Rxb4 {[%clk 0:02:22]} 49. Nc3 {[%clk 0:00:41.6]} 49...
Rb2 {[%clk 0:02:14.2]} 50. Re3 {[%clk 0:00:39.2]} 50... Rd2 {[%clk 0:02:12.5]}
51. Kf1 {[%clk 0:00:36.2]} 51... Kf6 {[%clk 0:02:11.6]} 52. Rf3+ {[%clk
0:00:33.3]} 52... Kg6 {[%clk 0:02:10.3]} 53. Ke1 {[%clk 0:00:31.7]} 53... Rb2
{[%clk 0:02:05.9]} 54. Kd1 {[%clk 0:00:28.2]} 54... f6 {[%clk 0:02:05.3]} 55.
Kc1 {[%clk 0:00:25.5]} 55... Rb3 {[%clk 0:02:04.8]} 56. Kc2 {[%clk 0:00:24.8]}
56... Rb8 {[%clk 0:02:00.5]} 57. Rg3+ {[%clk 0:00:22.6]} 57... Kf7 {[%clk
0:01:59.6]} 58. Nd1 {[%clk 0:00:19.5]} 58... Rb4 {[%clk 0:01:49.8]} 59. Ne3
{[%clk 0:00:18.1]} 59... c3 {[%clk 0:01:44.9]} 60. f3 {[%clk 0:00:17.3]} 60...
Ra4 {[%clk 0:01:37.9]} 61. Kxc3 {[%clk 0:00:15.9]} 61... Ra3+ {[%clk 0:01:37.4]}
62. Kd2 {[%clk 0:00:15.3]} 62... Ra2+ {[%clk 0:01:37.1]} 63. Nc2 {[%clk
0:00:14.4]} 63... Ra3 {[%clk 0:01:36.7]} 64. Ne3 {[%clk 0:00:12.3]} 64... Ra2+
{[%clk 0:01:33.4]} 65. Ke1 {[%clk 0:00:11.5]} 65... Ra3 {[%clk 0:01:27.9]} 66.
Nf5 {[%clk 0:00:10.8]} 66... Ra6 {[%clk 0:01:24.6]} 67. Kf2 {[%clk 0:00:10.3]}
67... Ra2+ {[%clk 0:01:22.8]} 68. Kg1 {[%clk 0:00:09.9]} 68... Ra6 {[%clk
0:01:17.8]} 69. Kg2 {[%clk 0:00:09.8]} 69... Rb6 {[%clk 0:01:16.8]} 70. Kh3
{[%clk 0:00:09.5]} 70... Ra6 {[%clk 0:01:14.8]} 71. Rg7+ {[%clk 0:00:09.1]}
71... Ke8 {[%clk 0:01:13]} 72. Rc7 {[%clk 0:00:08.3]} 72... Ra3 {[%clk
0:01:05.2]} 73. Kg4 {[%clk 0:00:08.2]} 73... Ra6 {[%clk 0:01:03.7]} 74. Rc6
{[%clk 0:00:07.3]} 74... Ra1 {[%clk 0:01:02.4]} 75. Nxd6+ {[%clk 0:00:06.5]}
75... Kd7 {[%clk 0:01:01.8]} 76. Kf5 {[%clk 0:00:06]} 76... Rf1 {[%clk
0:00:59.7]} 77. Kxf6 {[%clk 0:00:04.5]} 77... Rxf3+ {[%clk 0:00:58.8]} 78. Kxe5
{[%clk 0:00:04.4]} 78... Rh3 {[%clk 0:00:57.1]} 79. Nf5 {[%clk 0:00:04.3]} 79...
Rh8 {[%clk 0:00:52.3]} 80. Rd6+ {[%clk 0:00:04.2]} 80... Kc7 {[%clk 0:00:51.3]}
81. Re6 {[%clk 0:00:04.1]} 81... Ra8 {[%clk 0:00:46.1]} 82. Nd4 {[%clk 0:00:04]}
82... Ra5 {[%clk 0:00:43.6]} 83. Nc6 {[%clk 0:00:03.9]} 83... Ra4 {[%clk
0:00:41.3]} 84. Re7+ {[%clk 0:00:03.8]} 84... Kb6 {[%clk 0:00:36.5]} 85. Kd6
{[%clk 0:00:03.7]} 85... Rc4 {[%clk 0:00:34.4]} 86. e5 {[%clk 0:00:03.6]} 86...
Rc1 {[%clk 0:00:32.9]} 87. e6 {[%clk 0:00:03.5]} 87... Rh1 {[%clk 0:00:25.5]}
88. Re8 {[%clk 0:00:03.4]} 88... Rh6 {[%clk 0:00:25]} 89. Rb8+ {[%clk
0:00:02.8]} 89... Ka6 {[%clk 0:00:23.9]} 90. Rb4 {[%clk 0:00:02.7]} 90... Rxe6+
{[%clk 0:00:22.9]} 91. Kd7 {[%clk 0:00:02.3]} 91... Rd6+ {[%clk 0:00:17.9]} 92.
Kc7 {[%clk 0:00:01.5]} 92... Rxd5 {[%clk 0:00:16.6]} 93. Rb6# {[%clk 0:00:01]}
1-0

[Event "Live Chess"]
[Site "Chess.com"]
[Date "2024.06.02"]
[Round "-"]
[White "Crowded_House"]
[Black "CarmelJane"]
[Result "0-1"]
[WhiteElo "1724"]
[BlackElo "2078"]
[TimeControl "300"]
[EndTime "17:30:30 PDT"]
[Termination "CarmelJane won by checkmate"]

1. d4 {[%clk 0:04:57.3]} 1... Nf6 {[%clk 0:04:57.9]} 2. Bg5 {[%clk 0:04:56.1]}
2... e6 {[%clk 0:04:56.4]} 3. e3 {[%clk 0:04:54.5]} 3... h6 {[%clk 0:04:55.8]}
4. Bh4 {[%clk 0:04:52.8]} 4... g5 {[%clk 0:04:54.4]} 5. Bg3 {[%clk 0:04:51.8]}
5... Ne4 {[%clk 0:04:53.4]} 6. Nf3 {[%clk 0:04:47.9]} 6... Bg7 {[%clk
0:04:52.5]} 7. c3 {[%clk 0:04:45.9]} 7... b6 {[%clk 0:04:49.9]} 8. Bd3 {[%clk
0:04:45.1]} 8... Nxg3 {[%clk 0:04:48.6]} 9. hxg3 {[%clk 0:04:43.9]} 9... Bb7
{[%clk 0:04:48.5]} 10. Nbd2 {[%clk 0:04:40.9]} 10... d6 {[%clk 0:04:47.8]} 11.
O-O {[%clk 0:04:38.3]} 11... Nd7 {[%clk 0:04:47.3]} 12. Qc2 {[%clk 0:04:34.7]}
12... c5 {[%clk 0:04:35.9]} 13. dxc5 {[%clk 0:04:27.3]} 13... Nxc5 {[%clk
0:04:35.8]} 14. Be2 {[%clk 0:04:26]} 14... Qc7 {[%clk 0:04:27.9]} 15. Nb3 {[%clk
0:04:24]} 15... Be4 {[%clk 0:04:14.6]} 16. Qd2 {[%clk 0:04:13.1]} 16... Nxb3
{[%clk 0:04:10.6]} 17. axb3 {[%clk 0:04:11.4]} 17... O-O {[%clk 0:04:09.8]} 18.
Bd3 {[%clk 0:04:06.1]} 18... Bxf3 {[%clk 0:04:03.3]} 19. gxf3 {[%clk 0:04:05]}
19... d5 {[%clk 0:04:01.9]} 20. Ra6 {[%clk 0:03:51.8]} 20... Rfd8 {[%clk
0:03:49.7]} 21. Rfa1 {[%clk 0:03:49.6]} 21... e5 {[%clk 0:03:40]} 22. Bf5 {[%clk
0:03:36.6]} 22... d4 {[%clk 0:03:35.4]} 23. exd4 {[%clk 0:03:28.8]} 23... exd4
{[%clk 0:03:33.8]} 24. cxd4 {[%clk 0:03:21.2]} 24... Rxd4 {[%clk 0:03:31.4]} 25.
Qe2 {[%clk 0:03:15.6]} 25... Rdd8 {[%clk 0:03:18.1]} 26. Be4 {[%clk 0:03:14]}
26... Re8 {[%clk 0:03:16.4]} 27. Qc4 {[%clk 0:02:54.7]} 27... Qxc4 {[%clk
0:03:10.7]} 28. bxc4 {[%clk 0:02:53.3]} 28... Rac8 {[%clk 0:03:08.9]} 29. Rxa7
{[%clk 0:02:40.3]} 29... Bxb2 {[%clk 0:03:05.7]} 30. Rb1 {[%clk 0:02:37.6]}
30... Bd4 {[%clk 0:03:04.8]} 31. Bd3 {[%clk 0:02:33]} 31... b5 {[%clk 0:03:00]}
32. Rd7 {[%clk 0:02:23.8]} 32... bxc4 {[%clk 0:02:58.1]} 33. Rxd4 {[%clk
0:02:21.1]} 33... cxd3 {[%clk 0:02:57.7]} 34. Rxd3 {[%clk 0:02:19.8]} 34... Re2
{[%clk 0:02:53.6]} 35. Kf1 {[%clk 0:02:15.3]} 35... Rcc2 {[%clk 0:02:51.4]} 36.
Rd8+ {[%clk 0:02:02.5]} 36... Kg7 {[%clk 0:02:49.7]} 37. Rbb8 {[%clk 0:01:52.4]}
37... Rxf2+ {[%clk 0:02:48.3]} 38. Ke1 {[%clk 0:01:48.7]} 38... Rxf3 {[%clk
0:02:39.4]} 39. Rg8+ {[%clk 0:01:45.8]} 39... Kf6 {[%clk 0:02:36.3]} 40. Rb6+
{[%clk 0:01:43.8]} 40... Ke7 {[%clk 0:02:29.9]} 41. Rxh6 {[%clk 0:01:36]} 41...
Rxg3 {[%clk 0:02:26.2]} 42. Rh5 {[%clk 0:01:30.2]} 42... Rg1# {[%clk 0:02:15.1]}
0-1

[Event "Live Chess"]
[Site "Chess.com"]
[Date "2024.06.02"]
[Round "-"]
[White "KeithArkell"]
[Black "educatedlad"]
[Result "1-0"]
[WhiteElo "2423"]
[BlackElo "1745"]
[TimeControl "300"]
[EndTime "17:30:49 PDT"]
[Termination "KeithArkell won by resignation"]

1. d4 {[%clk 0:04:57.6]} 1... Nf6 {[%clk 0:04:56.2]} 2. Nf3 {[%clk 0:04:56.9]}
2... d5 {[%clk 0:04:53.2]} 3. c4 {[%clk 0:04:56.1]} 3... c6 {[%clk 0:04:51.2]}
4. cxd5 {[%clk 0:04:55.5]} 4... cxd5 {[%clk 0:04:49.6]} 5. Nc3 {[%clk 0:04:55]}
5... Nc6 {[%clk 0:04:48.3]} 6. Bg5 {[%clk 0:04:54.1]} 6... Qb6 {[%clk
0:04:41.1]} 7. Bxf6 {[%clk 0:04:53.2]} 7... gxf6 {[%clk 0:04:38.4]} 8. Nxd5
{[%clk 0:04:52.2]} 8... Qxb2 {[%clk 0:04:36.5]} 9. Nc7+ {[%clk 0:04:51.4]} 9...
Kd8 {[%clk 0:04:35]} 10. Nxa8 {[%clk 0:04:50.7]} 10... Qc3+ {[%clk 0:04:33.7]}
11. Nd2 {[%clk 0:04:50.1]} 11... Nxd4 {[%clk 0:04:30.5]} 12. Rc1 {[%clk
0:04:49.4]} 12... Qa5 {[%clk 0:04:24.6]} 13. e3 {[%clk 0:04:48.7]} 13... Ne6
{[%clk 0:04:20.7]} 14. Qc2 {[%clk 0:04:47.6]} 1-0

[Event "Live Chess"]
[Site "Chess.com"]
[Date "2024.06.02"]
[Round "-"]
[White "stevochess11"]
[Black "Harry_Li"]
[Result "0-1"]
[WhiteElo "1676"]
[BlackElo "2087"]
[TimeControl "300"]
[EndTime "17:31:10 PDT"]
[Termination "Harry_Li won by resignation"]

1. d4 {[%clk 0:04:58.1]} 1... d5 {[%clk 0:04:57.9]} 2. Nf3 {[%clk 0:04:57.2]}
2... Nf6 {[%clk 0:04:56.7]} 3. e3 {[%clk 0:04:55.9]} 3... e6 {[%clk 0:04:55.1]}
4. Bd3 {[%clk 0:04:54.2]} 4... c5 {[%clk 0:04:53.1]} 5. O-O {[%clk 0:04:52.5]}
5... Nc6 {[%clk 0:04:48.8]} 6. b3 {[%clk 0:04:51.5]} 6... cxd4 {[%clk
0:04:46.9]} 7. exd4 {[%clk 0:04:50.5]} 7... Bd6 {[%clk 0:04:45.6]} 8. Bb2 {[%clk
0:04:49.3]} 8... O-O {[%clk 0:04:44.9]} 9. Nbd2 {[%clk 0:04:47.5]} 9... b6
{[%clk 0:04:44.3]} 10. a3 {[%clk 0:04:46.6]} 10... a5 {[%clk 0:04:40.6]} 11. Ne5
{[%clk 0:04:44.4]} 11... Qc7 {[%clk 0:04:35.5]} 12. Qe2 {[%clk 0:04:38.2]} 12...
Nd7 {[%clk 0:04:22.1]} 13. f4 {[%clk 0:04:30.8]} 13... Bxe5 {[%clk 0:04:10]} 14.
fxe5 {[%clk 0:04:14.5]} 14... Ne7 {[%clk 0:04:06.9]} 15. Bxh7+ {[%clk
0:03:52.5]} 15... Kxh7 {[%clk 0:04:05.5]} 16. Qh5+ {[%clk 0:03:51]} 16... Kg8
{[%clk 0:04:04.4]} 17. Rf3 {[%clk 0:03:46.4]} 17... Nf5 {[%clk 0:03:33.1]} 18.
Rc1 {[%clk 0:03:40.4]} 18... g6 {[%clk 0:03:16.1]} 19. Qh3 {[%clk 0:03:26.4]}
19... Kg7 {[%clk 0:03:14.5]} 20. Nf1 {[%clk 0:03:21.2]} 20... Rh8 {[%clk
0:03:12.7]} 21. Qg4 {[%clk 0:03:16.5]} 21... Ba6 {[%clk 0:03:06.8]} 22. Ng3
{[%clk 0:03:10.4]} 22... Nxg3 {[%clk 0:02:58.7]} 23. Rxg3 {[%clk 0:03:07.3]}
23... Rh6 {[%clk 0:02:50.6]} 24. c4 {[%clk 0:03:02.6]} 24... dxc4 {[%clk
0:02:44.8]} 25. bxc4 {[%clk 0:03:01.1]} 25... Rah8 {[%clk 0:02:42.7]} 26. h3
{[%clk 0:02:52.2]} 26... Bxc4 {[%clk 0:02:38.4]} 27. Rgc3 {[%clk 0:02:47.2]}
27... b5 {[%clk 0:02:37.3]} 28. a4 {[%clk 0:02:45.6]} 28... Qb6 {[%clk
0:02:23.1]} 29. axb5 {[%clk 0:02:41.4]} 29... Bxb5 {[%clk 0:02:20.6]} 30. Kh2
{[%clk 0:02:32.9]} 30... Rh4 {[%clk 0:02:12.7]} 31. Qe2 {[%clk 0:02:22]} 31...
Bxe2 {[%clk 0:02:10.6]} 0-1

[Event "Live Chess"]
[Site "Chess.com"]
[Date "2024.06.02"]
[Round "-"]
[White "gobbles19"]
[Black "NeilDruggan73"]
[Result "1-0"]
[WhiteElo "2267"]
[BlackElo "1754"]
[TimeControl "300"]
[EndTime "17:31:13 PDT"]
[Termination "gobbles19 won by resignation"]

1. e4 {[%clk 0:04:57.8]} 1... d6 {[%clk 0:04:57]} 2. d4 {[%clk 0:04:57]} 2...
Nf6 {[%clk 0:04:55.4]} 3. Nc3 {[%clk 0:04:56.4]} 3... g6 {[%clk 0:04:51.9]} 4.
Be2 {[%clk 0:04:54.8]} 4... Bg7 {[%clk 0:04:45.5]} 5. h3 {[%clk 0:04:52.2]} 5...
O-O {[%clk 0:04:35]} 6. Nf3 {[%clk 0:04:49.4]} 6... e5 {[%clk 0:04:31.2]} 7. O-O
{[%clk 0:04:43.9]} 7... Nc6 {[%clk 0:04:28.9]} 8. d5 {[%clk 0:04:42.3]} 8... Ne7
{[%clk 0:04:27.7]} 9. Bg5 {[%clk 0:04:39.8]} 9... h6 {[%clk 0:04:25.7]} 10. Be3
{[%clk 0:04:38.7]} 10... Kh7 {[%clk 0:04:19.9]} 11. Nd2 {[%clk 0:04:36]} 11...
a6 {[%clk 0:04:14.9]} 12. a4 {[%clk 0:04:33.5]} 12... b6 {[%clk 0:04:03.7]} 13.
f4 {[%clk 0:04:30.5]} 13... exf4 {[%clk 0:03:56.1]} 14. Bxf4 {[%clk 0:04:30.4]}
14... Nfg8 {[%clk 0:03:49]} 15. Nf3 {[%clk 0:04:25.2]} 15... f5 {[%clk
0:03:47.9]} 16. e5 {[%clk 0:04:22.7]} 16... dxe5 {[%clk 0:03:46]} 17. Bxe5
{[%clk 0:04:20]} 17... Nf6 {[%clk 0:03:38.6]} 18. Qd4 {[%clk 0:04:08.2]} 18...
Bb7 {[%clk 0:03:31.2]} 19. Bc4 {[%clk 0:04:01.3]} 19... c5 {[%clk 0:02:52.3]}
20. dxc6 {[%clk 0:03:50.1]} 20... Qxd4+ {[%clk 0:02:50.5]} 21. Nxd4 {[%clk
0:03:48.6]} 21... Bxc6 {[%clk 0:02:47]} 22. Ne6 {[%clk 0:03:47.5]} 22... Rfc8
{[%clk 0:02:32.7]} 23. Nxg7 {[%clk 0:03:43.8]} 23... Kxg7 {[%clk 0:02:30.1]} 24.
Be6 {[%clk 0:03:42.2]} 24... Rf8 {[%clk 0:02:20.3]} 25. Rad1 {[%clk 0:03:40.7]}
25... Rad8 {[%clk 0:02:15.8]} 26. Rxd8 {[%clk 0:03:32.1]} 26... Rxd8 {[%clk
0:02:14]} 27. Rd1 {[%clk 0:03:31.8]} 27... Rxd1+ {[%clk 0:02:11.1]} 28. Nxd1
{[%clk 0:03:31.7]} 28... Bd5 {[%clk 0:02:04.5]} 29. Bxd5 {[%clk 0:03:29.6]}
29... Nxd5 {[%clk 0:02:02.2]} 30. Kf2 {[%clk 0:03:15]} 30... Kf7 {[%clk
0:02:01.5]} 31. Ne3 {[%clk 0:03:12.7]} 31... Nxe3 {[%clk 0:02:00.3]} 32. Kxe3
{[%clk 0:03:12.6]} 32... Ke6 {[%clk 0:01:58.9]} 33. Bxf6 {[%clk 0:03:03.1]}
33... Kxf6 {[%clk 0:01:56.9]} 34. Kd4 {[%clk 0:03:00.6]} 34... Ke6 {[%clk
0:01:55.2]} 35. b4 {[%clk 0:02:59.5]} 35... g5 {[%clk 0:01:53]} 36. c4 {[%clk
0:02:58.5]} 36... h5 {[%clk 0:01:46.6]} 37. c5 {[%clk 0:02:53.3]} 37... bxc5+
{[%clk 0:01:40]} 38. bxc5 {[%clk 0:02:52.5]} 38... g4 {[%clk 0:01:37.9]} 39. h4
{[%clk 0:02:45.2]} 39... f4 {[%clk 0:01:34.2]} 40. Ke4 {[%clk 0:02:44]} 40... f3
{[%clk 0:01:30.2]} 41. Ke3 {[%clk 0:02:36.7]} 41... Kd5 {[%clk 0:01:26.1]} 42.
gxf3 {[%clk 0:02:35.2]} 42... gxf3 {[%clk 0:01:22.3]} 43. Kxf3 {[%clk
0:02:35.1]} 43... Kxc5 {[%clk 0:01:20.9]} 44. Kf4 {[%clk 0:02:35]} 44... Kb4
{[%clk 0:01:20.2]} 45. Kg5 {[%clk 0:02:34.9]} 45... Kxa4 {[%clk 0:01:19.6]} 46.
Kxh5 {[%clk 0:02:34.8]} 46... Kb3 {[%clk 0:01:13.5]} 47. Kg6 {[%clk 0:02:33.8]}
47... a5 {[%clk 0:01:13.1]} 48. h5 {[%clk 0:02:33]} 48... a4 {[%clk 0:01:12.8]}
49. h6 {[%clk 0:02:32.6]} 49... a3 {[%clk 0:01:12.4]} 50. h7 {[%clk 0:02:31.8]}
50... a2 {[%clk 0:01:12]} 51. h8=Q {[%clk 0:02:31.3]} 1-0

[Event "Live Chess"]
[Site "Chess.com"]
[Date "2024.06.02"]
[Round "-"]
[White "Cruiseylee78"]
[Black "MaksymYurii"]
[Result "0-1"]
[WhiteElo "1694"]
[BlackElo "962"]
[TimeControl "300"]
[EndTime "17:31:18 PDT"]
[Termination "MaksymYurii won by resignation"]

1. d4 {[%clk 0:04:57]} 1... d5 {[%clk 0:04:58.6]} 2. Bf4 {[%clk 0:04:55.5]} 2...
Nc6 {[%clk 0:04:57.5]} 3. e3 {[%clk 0:04:54.7]} 3... Bf5 {[%clk 0:04:56]} 4. Bd3
{[%clk 0:04:48.8]} 4... Bxd3 {[%clk 0:04:52.6]} 5. Qxd3 {[%clk 0:04:48.7]} 5...
Nf6 {[%clk 0:04:50.2]} 6. c3 {[%clk 0:04:47.6]} 6... e6 {[%clk 0:04:47.3]} 7.
Nd2 {[%clk 0:04:45.7]} 7... Bd6 {[%clk 0:04:46.3]} 8. Bg3 {[%clk 0:04:44.1]}
8... O-O {[%clk 0:04:41.6]} 9. Ngf3 {[%clk 0:04:41.1]} 9... Re8 {[%clk
0:04:36.1]} 10. Bh4 {[%clk 0:04:30.6]} 10... e5 {[%clk 0:04:27]} 11. Bxf6 {[%clk
0:04:20.8]} 11... Qxf6 {[%clk 0:04:12.5]} 12. dxe5 {[%clk 0:04:18.2]} 12... Nxe5
{[%clk 0:04:06.7]} 13. Nxe5 {[%clk 0:04:17.6]} 13... Bxe5 {[%clk 0:04:05.6]} 14.
h4 {[%clk 0:04:14.1]} 14... c5 {[%clk 0:03:48]} 15. Nf3 {[%clk 0:04:09.7]} 15...
Rad8 {[%clk 0:03:39.3]} 16. g4 {[%clk 0:04:06.5]} 16... Qxf3 {[%clk 0:03:29.6]}
17. Rg1 {[%clk 0:03:14.4]} 17... Bh2 {[%clk 0:03:26.2]} 18. Qe2 {[%clk
0:03:08.6]} 18... Qxe2+ {[%clk 0:03:21.9]} 19. Kxe2 {[%clk 0:03:05.9]} 19...
Bxg1 {[%clk 0:03:20.7]} 20. Rxg1 {[%clk 0:03:03.5]} 20... d4 {[%clk 0:03:16.2]}
21. c4 {[%clk 0:03:00.8]} 21... d3+ {[%clk 0:03:12.7]} 22. Kd2 {[%clk
0:02:57.6]} 22... a6 {[%clk 0:03:08.7]} 23. b3 {[%clk 0:02:50.5]} 23... b5
{[%clk 0:03:07]} 24. Rc1 {[%clk 0:02:45.8]} 24... b4 {[%clk 0:03:05.5]} 25. Rd1
{[%clk 0:02:42.4]} 25... a5 {[%clk 0:03:02.3]} 26. a4 {[%clk 0:02:38.1]} 26...
bxa3 {[%clk 0:03:00.4]} 27. Ra1 {[%clk 0:02:35]} 27... Rb8 {[%clk 0:02:56.4]}
28. Rxa3 {[%clk 0:02:29.9]} 28... Re4 {[%clk 0:02:46.8]} 29. f3 {[%clk
0:02:25.3]} 29... Re6 {[%clk 0:02:39.7]} 30. Kxd3 {[%clk 0:02:20.8]} 30... Rb4
{[%clk 0:02:28.5]} 31. f4 {[%clk 0:02:10.6]} 31... Reb6 {[%clk 0:02:23.8]} 32.
Rxa5 {[%clk 0:02:05.1]} 32... Rxb3+ {[%clk 0:02:22.3]} 33. Ke4 {[%clk
0:02:02.5]} 33... Re6+ {[%clk 0:02:19.1]} 34. Kd5 {[%clk 0:01:59.4]} 34... Rbxe3
{[%clk 0:02:16.7]} 35. Ra8+ {[%clk 0:01:55.2]} 35... Re8 {[%clk 0:02:14.2]} 36.
Rxe8+ {[%clk 0:01:49.9]} 36... Rxe8 {[%clk 0:02:12.7]} 37. g5 {[%clk 0:01:45]}
37... Rc8 {[%clk 0:02:04.9]} 38. Kd6 {[%clk 0:01:39.5]} 38... Kf8 {[%clk
0:01:55.7]} 39. h5 {[%clk 0:01:31.5]} 39... g6 {[%clk 0:01:53.1]} 40. hxg6
{[%clk 0:01:24.8]} 40... fxg6 {[%clk 0:01:52.2]} 41. Kd7 {[%clk 0:01:20.1]}
41... Ra8 {[%clk 0:01:46.5]} 42. Kd6 {[%clk 0:01:16.2]} 42... Ra5 {[%clk
0:01:43.3]} 43. Kd5 {[%clk 0:01:10.8]} 43... Ke7 {[%clk 0:01:39.7]} 44. f5
{[%clk 0:01:07.8]} 44... gxf5 {[%clk 0:01:38.3]} 45. Ke5 {[%clk 0:01:05]} 45...
Ra4 {[%clk 0:01:34.2]} 46. Kxf5 {[%clk 0:00:58.8]} 46... Rxc4 {[%clk 0:01:32.7]}
47. g6 {[%clk 0:00:55.9]} 47... hxg6+ {[%clk 0:01:31.8]} 48. Kxg6 {[%clk
0:00:53.7]} 48... Rd4 {[%clk 0:01:31]} 49. Kf5 {[%clk 0:00:36.5]} 49... Rd6
{[%clk 0:01:30.9]} 50. Kf4 {[%clk 0:00:31.3]} 50... c4 {[%clk 0:01:30.8]} 0-1